Cogmind - Beta 14 @@@ ROGUE MODE // 2025.03.31 @ 15:51:00 Player: Arc Result: Destroyed by ZM-5HY(R) with Subdweller Shrapnel Launcher Performance ------------- Evolutions (0) 0 Regions Visited (2) 400 Robots Destroyed (25) 125 Value Destroyed (523) 523 Prototype IDs (3) 60 Alien Tech Used (0) 0 Bonus (0) 0 TOTAL SCORE: 1108 Bonus ------- None Cogmind --------- Core Integrity 0/250 Matter 222/300 Energy 112/265 System Corruption 0% Temperature Cool (6) Movement Rolling (115) Ox1 Location -10/Subcaves Parts ------- > --- POWER (1) -------- Improved Ion Engine > --- PROPULSION (2) --- Compact Wheel Compact Wheel > --- UTILITY (2) ------ High-capacity Storage Unit Core Shielding > --- WEAPON (2) ------- Beam Cannon Autogun > --- INVENTORY (20) --- Improved Ion Engine Improved Ion Engine Improved Ion Engine Light Nuclear Core Large Storage Unit EM Pulse Gun Beam Cannon Beam Cannon Autogun Autogun Light Cannon Light Cannon Mini Grenade Launcher Mining Claw Peak State ------------ > --- POWER ------------ Ion Engine > --- PROPULSION ------- Wheel Compact Wheel > --- UTILITY ---------- High-capacity Storage Unit Light Armor Plating > --- WEAPON ----------- Autogun Autogun > --- INVENTORY -------- Improved Ion Engine Improved Ion Engine Improved Ion Engine Improved Ion Engine Light Nuclear Core Compact Wheel Compact Wheel Large Storage Unit EM Pulse Gun Medium Laser Beam Cannon Beam Cannon Beam Cannon Autogun Light Cannon Light Cannon Mini Grenade Launcher Mining Claw [Rating: 11] Favorites ----------- Power Ion Engine Engine Ion Engine Propulsion Compact Wheel Wheel Compact Wheel Utility High-capacity Storage Unit Device Seismic Detector Storage High-capacity Storage Unit Protection Light Armor Plating Weapon Light Cannon Energy Gun EM Pulse Gun Energy Cannon Beam Cannon Ballistic Gun Autogun Ballistic Cannon Light Cannon Launcher Mini Grenade Launcher Slashing Weapon Mining Claw Build | -11 -10 -10 ------- Run | Yrd Mat Sub Slots Evolved . | . . . Power . | . . . Propulsion . | . . . Utility . | . . . Weapon . | . . . Parts Attached 24 | 7 12 5 Power 2 | 1 . 1 Engine 2 | 1 . 1 Core . | . . . Reactor . | . . . Propulsion 4 | 2 . 2 Treads . | . . . Leg . | . . . Wheel 4 | 2 . 2 Hover . | . . . Flight . | . . . Utility 6 | 2 4 . Device 1 | 1 . . Storage 3 | 1 2 . Processor . | . . . Hackware . | . . . Protection 2 | . 2 . Artifact . | . . . Weapon 12 | 2 8 2 Energy Gun 2 | 2 . . Energy Cannon 2 | . . 2 Ballistic Gun 3 | . 3 . Ballistic Cannon 3 | . 3 . Launcher 1 | . 1 . Special Weapon . | . . . Impact Weapon . | . . . Slashing Weapon 1 | . 1 . Piercing Weapon . | . . . Special Melee Weapon . | . . . Unidentified Prototypes . | . . . Parts Lost 5 | . 1 4 Power 1 | . . 1 Propulsion 1 | . . 1 Utility 1 | . 1 . Weapon 2 | . . 2 Highest Loss Streak 4 | . 1 4 To Critical Strikes . | . . . Average Slot Usage (%) 98 | . 99 95 Engine 13 | . 14 11 Wheel 27 | . 28 27 Storage 14 | . 14 14 Protection 13 | . 13 14 Ballistic Gun 12 | . 11 25 Ballistic Cannon 14 | . 15 . Peak Build Rating 11 | 7 11 11 Average Rating 8 | 4 9 10 On Entrance 6 | . 7 11 Naked Turns . | . . . Heaviest Build 54 | 15 54 54 Greatest Support 32 | 26 26 32 Greatest Overweight (x) 2 | 1 2 1 Average Overweight (x) 1 | . 1 1 Largest Inventory Capacity 20 | 8 20 20 Average Capacity 17 | 7 18 20 Most Carried 20 | 8 20 19 Average Carried 13 | 4 13 18 Final Capacity 20 | 8 20 20 Final Carried 19 | 4 19 14 Class Distribution -------------------- 100% | Mutant Dominant Class ---------------- Mutant | -10/Materials Mutant | -10/Subcaves Resources | -11 -10 -10 ----------- Run | Yrd Mat Sub Matter Collected 749 | 231 518 . Remotely . | . . . Salvage Created 841 | 204 554 83 Parts 45 | 14 28 3 Haulers Intercepted 2 | . 2 . Recyclers Shooed 1 | 1 . . Parts Field Recycled . | . . . Retrieved Matter . | . . . Parts Self-Destructed . | . . . Prevented . | . . . Kills | -11 -10 -10 ------- Run | Yrd Mat Sub Combat Hostiles Destroyed 12 | . 10 2 Guns 4 | . 2 2 Cannons 6 | . 6 . AOE 2 | . 2 . Classes Destroyed 9 | 3 5 1 Worker 1 | 1 . . Tunneler 4 | 3 1 . Hauler 2 | . 2 . Recycler 2 | 1 1 . Operator 1 | . 1 . Watcher 3 | . 3 . Swarmer 3 | . 3 . Grunt 7 | . 7 . Subdweller 2 | . . 2 Best Kill Streak 9 | 5 9 2 Combat Bots Only 6 | . 6 2 Max Kills in Single Turn 2 | 1 2 1 Gunslinging . | . . . Exploded 2 | . 2 . Melee . | . . . Uniques/NPCs Destroyed . | . . . Combat | -11 -10 -10 -------- Run | Yrd Mat Sub Hostile Shots Fired 60 | . 31 29 Missed 22 | . 12 10 Damage Taken 1020 | . 290 730 Core 273 | . 47 226 Absorbed by Shields . | . . . Redirected to Shielding 43 | . . 43 Core Remaining (%) 100 | 100 . . Volleys Fired 66 | 11 46 9 Largest 2 | 2 2 2 Hottest 90 | 90 90 83 Shots Fired 126 | 22 88 16 Gun 66 | 22 32 12 Cannon 56 | . 52 4 Launcher 4 | . 4 . Special . | . . . Kinetic 94 | . 82 12 Thermal 16 | 11 1 4 Explosive 4 | . 4 . Electromagnetic 12 | 11 1 . Robot Hit Streak 10 | 10 5 6 Robot Miss Streak 16 | 1 16 3 Penetration Max . | . . . Secondary Targets . | . . . Shots Hit Robots 62 | 15 39 8 Core Hits 29 | 6 20 3 Critical Kills . | . . . Critical Parts Destroyed . | . . . Critical Strikes 1 | . 1 . Blast 1 | . 1 . Melee Attacks 1 | . 1 . Impact . | . . . Slashing 1 | . 1 . Piercing . | . . . Sneak Attacks . | . . . Combat Hostiles . | . . . Follow-up Attacks . | . . . Damage Inflicted 1333 | 232 966 135 Guns 564 | 209 255 100 Cannons 428 | . 393 35 Explosions 340 | 23 317 . Melee . | . . . Ramming 1 | . 1 . Kinetic 748 | . 648 100 Thermal 133 | 98 . 35 Explosive 317 | . 317 . Electromagnetic 134 | 134 . . Impact . | . . . Slashing . | . . . Piercing . | . . . Highest Corruption . | . . . Average Corruption . | . . . Corruption Purged . | . . . Corruption Blocked . | . . . Overload Shots . | . . . Overflow Damage 102 | . 102 . Projectiles . | . . . Explosions 102 | . 102 . Melee . | . . . Knockbacks 6 | . 6 . Impact . | . . . Kinetic 6 | . 6 . Secondary . | . . . Self-Inflicted Damage 18 | . 18 . Shots 1 | . 1 . Rammed 1 | . 1 . Targets Rammed 1 | . 1 . Kicked . | . . . Crushed . | . . . Highest Temperature 165 | 90 165 4 Average Temperature 39 | 39 39 2 Received Heat Transfer 183 | . 105 78 Siege Activations . | . . . Robots Corrupted . | . . . Combat Hostiles . | . . . Parts Fried . | . . . Impact Corruptions . | . . . Robots Melted . | . . . Combat Hostiles . | . . . Parts Melted 1 | 1 . . Heat Transferred 346 | 272 . 74 Parts Sabotaged . | . . . Parts Stolen . | . . . Parts Stripped . | . . . Power Chain Reactions 1 | 1 . . Alert | -11 -10 -10 ------- Run | Yrd Mat Sub Peak Influence 410 | 25 410 . Initial 16 | . 16 . Average 178 | 6 195 . Maximum Alert Level 2 | . 2 . Low Security (%) 57 | 100 53 . Level 1 39 | . 42 . Level 2 3 | . 3 . Level 3 . | . . . Level 4 . | . . . Level 5 . | . . . High Security . | . . . Max Security . | . . . Squads Dispatched 2 | . 2 . Investigation . | . . . Extermination . | . . . Reinforcement 2 | . 2 . Assault . | . . . Garrison . | . . . Intercept . | . . . Searches Triggered . | . . . Construction Impeded . | . . . Haulers Reinforced . | . . . Active Scanning Responses . | . . . Cargo Convoy Interrupts . | . . . Stealth | -11 -10 -10 --------- Run | Yrd Mat Sub Distress Signals 1 | . 1 . Communications Jammed . | . . . Distress Signals . | . . . Times Spotted 27 | . 22 5 Peak Tracking Total 5 | . 5 4 Tactical Retreats . | . . . Traps | -11 -10 -10 ------- Run | Yrd Mat Sub Traps Triggered 1 | . 1 . Indirectly . | . . . Trap Hack Attempts . | . . . Triggered . | . . . Disarmed . | . . . Reprogrammed . | . . . Reused . | . . . Traps Extracted . | . . . Installed . | . . . Triggered . | . . . Machines | -11 -10 -10 ---------- Run | Yrd Mat Sub Machines Disabled 4 | . 4 . Max in Single Turn 2 | . 2 . Machines Repaired . | . . . Machines Dismantled . | . . . Machines Sabotaged . | . . . Overloaded Fab Kills . | . . . Hacking | -11 -10 -10 --------- Run | Yrd Mat Sub Machines Accessed 6 | . 6 . Terminals 5 | . 5 . Fabricators . | . . . Repair Stations . | . . . Recycling Units 1 | . 1 . Scanalyzers . | . . . Garrison Access . | . . . Total Hacks 13 | . 13 . Successful 6 | . 6 . Failed 7 | . 7 . Catastrophic 1 | . 1 . Database Lockouts . | . . . Manual . | . . . Terminals 11 | . 11 . Fabricators . | . . . Repair Stations . | . . . Recycling Units 2 | . 2 . Scanalyzers . | . . . Garrison Access . | . . . Terminal Hacks 5 | . 5 . Record 1 | . 1 . Prototype ID Bank 1 | . 1 . Locate Traps 2 | . 2 . Reinforcement Status 1 | . 1 . Fabricator Hacks . | . . . Repair Station Hacks . | . . . Recycling Unit Hacks 1 | . 1 . Report Inventory 1 | . 1 . Scanalyzer . | . . . Garrison Access Hacks . | . . . Unauthorized Hacks . | . . . Terminals . | . . . Fabricators . | . . . Repair Stations . | . . . Recycling Units . | . . . Scanalyzers . | . . . Garrison Access . | . . . Data Cores Recovered . | . . . Used . | . . . Hacking Detections 6 | . 6 . Full Trace Events 1 | . 1 . Feedback Events . | . . . Feedback Blocked . | . . . Robot Schematics Acquired . | . . . Robots Built . | . . . Authchips . | . . . Time . | . . . Total Robot Build Rating . | . . . Part Schematics Acquired . | . . . Parts Built . | . . . Authchips . | . . . Time . | . . . Total Part Build Rating . | . . . Parts Repaired . | . . . Time . | . . . Parts Recycled . | . . . Recycled Matter . | . . . Retrieved Matter . | . . . Retrieved Components . | . . . Parts Scanalyzed . | . . . Part Schematics Acquired . | . . . Parts Damaged . | . . . Bothacking | -11 -10 -10 ------------ Run | Yrd Mat Sub Used RIF Installer . | . . . Robots Hacked . | . . . Non-combat . | . . . Combat . | . . . Robot Hacks Applied . | . . . Relay Couplers Released . | . . . Fabnet Peak Effective % . | . . . Robots Rewired . | . . . Allies Hacked . | . . . Hacks Repelled . | . . . Allies | -11 -10 -10 -------- Run | Yrd Mat Sub Total Allies . | . . . Largest Group . | . . . Highest-Rated Group . | . . . Highest-Rated Ally . | . . . Total Orders . | . . . Ally Attacks . | . . . Total Damage . | . . . Kills . | . . . Allies Corrupted . | . . . Allies Melted . | . . . Intel | -11 -10 -10 ------- Run | Yrd Mat Sub Robot Analysis Total . | . . . Derelict Logs Recovered 1 | . . 1 Drone Launches . | . . . Drone Recoveries . | . . . Exploration | -11 -10 -10 ------------- Run | Yrd Mat Sub Turns Passed 1713 | 140 1421 152 Spaces Moved 1325 | 90 1117 118 Core 23 | 23 . . Treads . | . . . Legs . | . . . Wheels 1302 | 67 1117 118 Hover . | . . . Flight . | . . . Fastest Speed 50 | 50 90 105 Average Speed 108 | 89 110 105 Slowest Speed 120 | 100 120 115 Overloaded Moves . | . . . Propulsion Burnouts . | . . . Robots Hopped . | . . . Cave-ins Triggered . | . . . Exploration Rate (%) 37 | 4 100 9 Regions Visited 2 Branch Regions 1 Pre-discovered Areas . | . . . Known Exits Taken . | . . . Unknown Exits Taken 2 | 1 1 . Scrap Searched . | . . . Spaces Dug 1 | . 1 . Terrain Destroyed 34 | 4 30 . Melee 1 | . 1 . Projectile . | . . . AOE 33 | 4 29 . Terrain Rammed . | . . . Walls Destroyed . | . . . Machines Disabled . | . . . Actions | -11 -10 -10 --------- Run | Yrd Mat Sub Total 1481 | 130 1218 133 Wait 10 | . 10 . Move 1323 | 89 1116 118 Hop . | . . . Pick Up 41 | 17 24 . Fast Attach . | . . . Attach 15 | 7 3 5 Detach . | . . . Swap 9 | . 9 . Drop 15 | 6 8 1 Fire 66 | 11 46 9 Melee 1 | . 1 . Ram 1 | . 1 . Kick . | . . . Crush . | . . . Escape Stasis . | . . . Rewire . | . . . Trap . | . . . Miscellaneous . | . . . Route ------- -11/Scrapyard -10/Materials (discovered 6 exits: [*Mat x3] / [*Min x2] / [*Sub]) -10/Subcaves History --------- Turn | Location | Event 15 | -11/Scrapyard | Discovered new exit (range 14) 141 | -11/Scrapyard | Entered Materials 177 | -10/Materials | Discovered new exit (range 13) 317 | -10/Materials | Build established: Mutant 583 | -10/Materials | Discovered new exit (range 13) 758 | -10/Materials | Discovered new exit (range 9) 846 | -10/Materials | Discovered new exit (range 13) 1025 | -10/Materials | Discovered new exit (range 15) 1141 | -10/Materials | Discovered new exit (range 5) 1562 | -10/Materials | Entered Subcaves 1562 | -10/Subcaves | Learned 8 Materials zone layouts 1678 | -10/Subcaves | Ambushed by Subdweller buried in earth 1680 | -10/Subcaves | Ambushed by Subdweller buried in earth 1693 | -10/Subcaves | Core integrity fell below 50% 1711 | -10/Subcaves | Core integrity fell below 20% 1714 | -10/Subcaves | Destroyed by ZM-5HY(R) with Subdweller Shrapnel Launcher Last Messages --------------- R-06 Scavenger collects Hover Unit. Acquired 14 matter. LOCATION=UNKNOWN AMBIENT_HEAT=-10 GOAL=ESCAPE Acquired derelict log, extracted data. Data stored: Materials zone layouts (x8). LF-OJI(R) emerges from the Twisted Machinery. Ion Engine destroyed. 5W-Y25(R): "ARGHSUB!" JL-9N6(R): "FREEEEDUMB!" Autogun destroyed. Wheel destroyed. JL-9N6(R) destroyed. Subatomizers dissect the Sub. Power Source. 5W-Y25(R) destroyed. 2Z-DGN(R) emerges from concealment. Dropped Com. Wheel. Beam Cannon destroyed. Subatomizers dissect the Sub. Power Source. Map ----- +----------------------------------------------------+ | ?????????????????????????????????????????????????? | | ?????????????????????????????????????????????????? | | ?????????????????????????????????????????????????? | | ?????????????????????????????????????????????????? | | ?????????????????????????????????????????????????? | | ?????????????????????????????????????????????????? | | ?????????????????????????????????????????????????? | | ?????????????????????????????????????????????????? | | ?????????????????????????????????????????????????? | | ?????????????????????????????????????????????????? | | ?????????????????????????????????????????????????? | | #####????????????????????????????????????????????? | | ##???????????????????????????????????????????? | | ????????????????????????????????????????????? | | #?????????????????????????????????#??????????? | | #???????????????????????????????## ?????????? | | #?????????????????????????????? ??????????? | | #???????????????#####??##?????# #??????????? | | # ######???######## ## ## ###??# ???????????? | | ## ##### #?? ????????????? | | #?# ?????????????? | | ## #??????????????? | | ## # #???????????????? | | ## ; #####????????????? | | ### ### #????????????? | | ### ### #### @ ;; #????????????? | | ### ### ## ;;###??????????? | | ## ###### &*% ;#??????????? | | ##??# ;; &%! ##?????????? | | ##?## ### ;#;# =& #?????????? | | #### ##?# ###;; ## ##????????? | | #### #?# #?### #" #????????? | | ### #??? #" #????????? | | #### ####??? #" #????????? | | #??# ##???# ## #????????? | | ####### #?## #???? ###RRR#" #????????? | | ???????# ##??# ###?? ??## ## # ###????????? | | ????????##???# ## ##? ???## ? ###??????????? | | ?????????????# ### ????# ????????????? | | ????????????## ## #?#?????##? ????????????? | | ????????????# ####?????????? ???????????? | | ????????????## ##???????????? ????????????? | | ????????????# # #????????????? ????????????? | | ????????????#####????????????## " "????????????? | | ??????????????????????????????# """""????????????? | | ???????????????????????????????#??""?????????????? | | ?????????????????????????????????????????????????? | | ?????????????????????????????????????????????????? | | ?????????????????????????????????????????????????? | | ?????????????????????????????????????????????????? | +----------------------------------------------------+ Best States ------------- Heat Dissipation 25 Energy Generation 12 Energy Capacity 265 Matter Stores 300 Matter Capacity 300 Sight Range 16 Terrain Scan Density 10 Armor Coverage 150 Core Shielding 20 Evasion (%) 42 Item Schematics ----------------- None Robot Schematics ------------------ None Fabricated ------------ Nothing Alien Tech Used ----------------- None Achievements -------------- None Challenges ------------ None Game ------ Seed ActuatorBombRedirector Manual? 0 Play Time 00:24:06 Cumulative 14.4 hours Start 2025.03.31 @ 15:28:36 End 2025.03.31 @ 15:51:00 Sessions 1 Manual Loads 0 Difficulty Rogue Special Mode None Game No. 21 Rogue 21 Adventurer 0 Explorer 0 Win Type - Total 0 Types 0/0/0/0/0/0/0/0/0 Lore% 8 Gallery% 14 Achievement% 15 Wizard Run 0 Options --------- Layout 1 ASCII 0 Keyboard 0 Movement Numpad Keybinds 0 Fullscreen 1 Font 16/SmallcapsGlow Map View 55x38 Zoom Use 0% Tactical HUD 0 Map Filters NONE Filters NONE Steam 1 RUN: 7feeb2c9-3ae7-4cb0-a943-cfdf6ad9f0ba